bitfinex/quotes_ETHUSD_20251206
["timestamp","ask_amount","ask_price","bid_price","bid_amount"]
[1765010401003,1.69430069,3019.1,3019.0,0.05]
[1765010401737,5.73214017,3019.1,3019.0,0.05]
[1765010403508,7.73214017,3019.1,3019.0,0.05]
[1765010403805,9.16267981,3019.1,3019.0,0.05]
[1765010404232,7.16267981,3019.1,3019.0,0.05]
[1765010404412,15.09388836,3019.1,3019.0,0.05]
[1765010404931,15.09388836,3019.1,3019.0,0.051]
[1765010405426,15.61888836,3019.1,3019.0,0.051]
[1765010408312,0.6461,3018.6,3018.3,0.001]
[1765010408610,0.6461,3018.6,3018.1,0.001]
[1765010408611,7.06230666,3018.2,3018.1,0.001]
[1765010408833,7.52150666,3018.2,3018.1,0.001]
[1765010409142,7.97210666,3018.2,3018.1,0.001]
[1765010409448,8.85179699,3018.2,3018.1,0.001]
[1765010410106,12.16503004,3018.2,3018.1,0.001]
[1765010411133,11.71443004,3018.2,3018.1,0.001]
[1765010412130,12.16503004,3018.2,3018.1,0.001]
[1765010413312,14.29773853,3018.2,3018.1,0.001]
[1765010417462,7.51042598,3018.2,3018.1,0.001]
[1765010417670,4.03882716,3018.2,3018.1,1.1031]
[1765010417855,5.38862385,3018.2,3018.1,1.1031]
[1765010418146,6.25772785,3018.2,3018.1,0.001]
[1765010418350,6.70832785,3018.2,3018.1,0.001]
[1765010418554,8.00620389,3018.2,3018.1,0.001]
[1765010420247,7.55560389,3018.2,3018.1,0.001]
[1765010422624,7.09200389,3018.2,3018.1,0.4876]
[1765010423024,5.38862385,3018.2,3018.1,0.4876]
[1765010423232,1.5503908,3018.2,3018.1,1.1053]
[1765010423434,0.82479669,3018.2,3018.1,1.1053]
[1765010423675,3.31316574,3018.3,3018.1,1.1053]
[1765010423974,3.31316574,3018.3,3018.2,0.956]
[1765010425375,3.31316574,3018.3,3018.2,0.4866]
[1765010425773,3.31316574,3018.3,3018.2,0.956]
[1765010430174,3.31316574,3018.3,3018.2,0.4866]
[1765010431043,3.31316574,3018.3,3018.2,0.956]
[1765010432141,3.31316574,3018.3,3018.2,0.4866]
[1765010432468,5.4359829,3018.3,3018.1,0.001]
[1765010432650,1.34979669,3018.2,3018.1,0.001]
[1765010432853,4.13802974,3018.2,3018.1,0.1493]
[1765010433067,4.13802974,3018.2,3018.1,0.6359]
[1765010433570,4.13802974,3018.2,3018.1,1.1053]
[1765010434074,3.31316574,3018.3,3018.1,1.1053]
[1765010434075,3.3131658,3018.3,3018.1,1.1053]
[1765010434266,3.3131658,3018.3,3018.2,0.956]
[1765010434473,3.31290376,3018.5,3018.2,0.956]
[1765010434771,4.13770045,3018.5,3018.4,0.4866]
[1765010435080,4.13770045,3018.5,3018.4,0.956]
[1765010437057,3.31257453,3018.8,3018.4,0.956]
[1765010437272,3.31257453,3018.8,3018.7,0.4866]
[1765010437645,3.31257453,3018.8,3018.7,0.956]
[1765010442045,4.13730087,3018.9,3018.7,0.956]
[1765010442245,3.31439794,3019.0,3018.8,0.952]
[1765010442462,3.31439794,3019.0,3018.9,0.4543]
[1765010442661,3.31439794,3019.0,3018.9,0.952]
[1765010443350,0.002,3019.0,3018.9,0.952]
[1765010447049,0.002,3019.0,3018.9,1.37846458]
[1765010447876,0.002,3019.0,3018.9,4.69092938]
[1765010448076,0.002,3019.0,3018.9,10.62213793]
[1765010448277,0.002,3019.0,3018.9,11.14713793]
[1765010451595,0.002,3019.0,3018.9,11.87273204]
[1765010452887,0.002,3019.3,3019.0,0.72559411]
[1765010453088,0.002,3019.3,3019.2,7.41760524]
[1765010453308,0.002,3019.3,3019.2,11.45533501]
[1765010453607,0.002,3019.3,3019.2,11.92153501]
[1765010454414,0.002,3019.3,3019.2,11.91312994]
[1765010456677,0.002,3019.7,3019.6,6.64839759]
[1765010456892,0.002,3019.7,3019.6,7.65429759]
[1765010457097,0.002,3019.7,3019.6,2.19769411]
[1765010457996,0.002,3019.7,3019.6,5.50939102]
[1765010461604,0.002,3020.4,3019.8,24.947807]
[1765010461794,0.002,3020.4,3020.3,7.12929759]
[1765010461998,0.002,3020.4,3020.3,7.65329759]
[1765010462199,0.002,3020.4,3020.3,8.11949759]
[1765010462523,0.002,3020.4,3020.3,1.0049]
[1765010462817,0.9043,3020.4,3020.3,0.524]
[1765010463026,0.9043,3020.4,3020.0,3.31125233]
[1765010463196,0.9043,3020.4,3020.0,3.83525233]
[1765010463587,0.4713,3020.4,3020.0,3.83525233]
[1765010463815,0.4713,3020.4,3020.0,4.30145233]
[1765010464212,0.4713,3020.4,3020.0,5.14522464]
[1765010467323,0.4713,3020.4,3020.0,0.524]
[1765010468594,0.4713,3020.4,3020.0,3.8352496]
[1765010468795,0.4713,3020.4,3020.0,4.3014496]
[1765010471297,0.002,3020.4,3020.3,0.4576]
[1765010471728,0.002,3020.4,3020.3,0.9411]
[1765010474520,0.002,3020.4,3020.3,0.4576]
[1765010476127,0.4508,3020.4,3020.0,0.525]
[1765010476329,0.002,3020.4,3020.3,0.4576]
[1765010476724,0.002,3020.4,3020.3,0.9411]
[1765010478406,0.002,3020.4,3020.3,5.58451664]
[1765010479105,0.002,3020.4,3020.3,6.31011075]
[1765010489211,0.002,3020.4,3020.3,5.36901075]
[1765010489412,0.9052,3020.4,3020.1,3.31113546]
[1765010489617,0.4455,3020.2,3020.1,0.524]
[1765010489948,0.4455,3020.2,3020.0,0.001]
[1765010490250,0.4621,3020.1,3020.0,0.001]
[1765010491451,0.83940676,3020.1,3020.0,0.001]
[1765010492552,4.15055539,3020.1,3020.0,0.001]
[1765010493253,0.83940676,3020.1,3020.0,0.001]
[1765010493460,0.4621,3020.1,3020.0,0.001]
[1765010494059,0.0089,3020.1,3020.0,0.001]
[1765010494422,0.4621,3020.1,3020.0,0.001]
[1765010494623,0.002,3020.4,3020.0,0.4586]
[1765010495019,0.002,3020.4,3020.0,0.9826]
[1765010495234,0.002,3020.4,3020.0,1.4661]
[1765010495418,0.4847,3020.1,3020.0,0.525]
[1765010496655,0.4189,3020.3,3020.0,0.9826]
[1765010497153,0.002,3020.4,3020.0,0.9826]
[1765010497354,0.4552,3020.4,3020.0,0.9826]
[1765010497550,0.4552,3020.4,3020.0,4.29383698]
[1765010497726,0.002,3020.4,3020.3,0.4576]
[1765010498130,0.4867,3020.4,3020.0,3.83623698]
[1765010498340,0.4867,3020.4,3020.0,4.31973698]
[1765010498571,0.4867,3020.4,3020.0,3.83623698]
[1765010498741,0.4867,3020.4,3020.0,4.31973698]
[1765010499362,0.002,3020.4,3020.3,0.4881]
[1765010499845,0.002,3020.4,3020.3,0.9496]
[1765010500688,0.002,3020.4,3020.3,4.26052937]
[1765010501471,0.002,3020.4,3020.3,10.90892696]
[1765010501766,0.002,3020.4,3020.3,12.74451319]
[1765010506363,0.002,3020.4,3020.3,13.56930988]
[1765010512185,0.002,3020.4,3020.3,18.21491727]
[1765010512565,0.002,3020.4,3020.3,18.34741608]
[1765010512884,0.002,3020.4,3020.3,18.44981269]
[1765010514357,0.002,3020.4,3020.3,24.35995481]
[1765010515093,0.002,3020.4,3020.3,54.7880582]
[1765010515273,0.002,3020.8,3020.5,0.405504]
[1765010515478,0.002,3020.8,3020.7,8.3657676]
[1765010515676,0.002,3020.8,3020.7,10.19002403]
[1765010515977,0.002,3020.8,3020.7,10.65802403]
[1765010517052,0.002,3020.8,3020.7,13.50051497]
[1765010517258,0.002,3020.8,3020.7,13.96851497]
[1765010517889,0.002,3020.8,3020.7,13.09501097]
[1765010519387,0.002,3020.8,3020.7,12.57101097]
[1765010519580,0.4438,3020.8,3020.7,12.60161097]
[1765010519775,0.002,3020.8,3020.7,13.09501097]
[1765010520178,0.002,3020.8,3020.7,13.56301097]
[1765010521071,0.002,3020.8,3020.7,17.37501097]
[1765010521865,0.002,3020.8,3020.7,16.90701097]
[1765010522787,0.4438,3020.8,3020.7,16.41361097]
[1765010523358,0.4438,3020.8,3020.7,10.49713817]
[1765010523558,0.8944,3020.8,3020.7,16.41361097]
[1765010523791,0.8944,3020.8,3020.7,4.336]
[1765010523972,0.8944,3020.8,3020.7,0.524]
[1765010526407,0.002,3020.8,3020.7,10.24436374]
[1765010526619,0.002,3020.8,3020.7,10.71236374]
[1765010527998,0.002,3020.8,3020.7,10.24436374]
[1765010528186,0.002,3020.8,3020.7,12.06020111]
[1765010531494,0.002,3020.8,3020.7,8.25631017]
[1765010531495,0.8996,3020.8,3020.7,8.25631017]
[1765010531800,0.8996,3020.8,3020.7,0.524]
[1765010532184,0.4547,3020.8,3020.7,10.57576043]
[1765010532599,0.002,3020.8,3020.7,10.57576043]
[1765010532811,0.002,3020.8,3020.7,11.06576043]
[1765010533705,0.002,3020.8,3020.7,12.58586972]
[1765010534503,0.4546,3020.8,3020.7,12.09586972]
[1765010535881,0.4546,3020.8,3020.7,5.9164728]
[1765010535882,0.8996,3020.8,3020.7,5.9164728]
[1765010536202,0.8996,3020.8,3020.7,0.524]
[1765010542316,0.8996,3020.8,3020.7,3.83449094]
[1765010542484,0.4546,3020.8,3020.7,3.83449094]
[1765010542885,0.8996,3020.8,3020.7,3.83449094]
[1765010543113,0.8996,3020.8,3020.7,0.524]
[1765010544121,0.8996,3020.8,3020.7,3.83449094]
[1765010544917,0.4546,3020.8,3020.7,0.524]
[1765010545211,0.4546,3020.8,3020.7,3.83449094]
[1765010545418,0.8996,3020.8,3020.7,0.524]
[1765010547630,0.8996,3020.8,3020.7,3.83449094]
[1765010549236,0.4546,3020.8,3020.7,3.83449094]
[1765010550490,0.4546,3020.8,3020.7,0.524]
[1765010550827,0.8996,3020.8,3020.7,0.524]
[1765010551509,0.8996,3020.8,3020.7,3.83449094]
[1765010552414,0.4546,3020.8,3020.7,3.83449094]
[1765010555517,0.8996,3020.8,3020.7,0.524]
[1765010555719,0.8996,3020.8,3020.7,3.83449094]
[1765010557040,0.4546,3020.8,3020.7,3.83449094]
[1765010558444,0.8996,3020.8,3020.7,0.524]
[1765010559244,0.8996,3020.8,3020.7,3.83449094]
[1765010560743,0.8996,3020.8,3020.7,0.524]
[1765010561111,0.8996,3020.8,3020.7,3.83449094]
[1765010564852,0.8996,3020.8,3020.7,0.524]
[1765010565848,0.8996,3020.8,3020.7,3.83449094]
[1765010566546,0.8996,3020.8,3020.7,0.524]
[1765010567033,0.8996,3020.8,3020.4,0.525]
[1765010567235,0.4698,3020.5,3020.4,0.525]
[1765010567817,0.8977,3020.5,3020.4,0.525]
[1765010568542,0.8977,3020.5,3020.4,3.83581975]
[1765010570741,0.4698,3020.5,3020.4,3.83581975]
[1765010571344,0.002,3020.8,3020.4,4.77931975]
[1765010571661,0.4638,3020.8,3020.5,6.74126949]
[1765010572656,0.002,3020.8,3020.5,10.05187161]
[1765010573356,0.002,3020.8,3020.7,13.55114629]
[1765010573560,0.002,3021.1,3020.8,1.13109811]
[1765010573744,0.002,3021.1,3021.0,7.12996691]
[1765010574134,0.002,3021.1,3021.0,7.58556691]
[1765010574632,0.002,3021.1,3021.0,10.8957291]
[1765010574836,0.002,3021.1,3021.0,12.40928051]
[1765010575458,0.002,3021.1,3021.0,1.51355141]
[1765010575459,0.4125,3021.1,3021.0,1.51355141]
[1765010575755,0.8738,3021.1,3021.0,0.524]
[1765010579562,0.8738,3021.1,3020.7,3.8344902]
[1765010579740,0.4613,3021.0,3020.7,0.524]
[1765010579941,0.411,3020.8,3020.7,0.524]
[1765010580440,0.8718,3020.8,3020.7,0.524]
[1765010581336,0.8718,3020.8,3020.4,0.001]
[1765010581539,0.4069,3020.5,3020.4,0.001]
[1765010582636,0.8687,3020.5,3020.4,0.001]
[1765010586647,0.4069,3020.5,3020.4,0.001]
[1765010587165,0.8687,3020.5,3020.4,0.001]
[1765010588462,0.4069,3020.5,3020.4,0.001]
[1765010589453,3.50900533,3020.9,3020.4,0.482]
[1765010589772,0.4769,3020.8,3020.4,0.482]
[1765010590973,0.4769,3020.8,3020.4,3.7927426]
[1765010591179,0.1987,3020.9,3020.4,4.2826426]
[1765010591340,0.6756,3020.9,3020.4,4.2826426]
[1765010592568,0.4769,3020.8,3020.4,4.2826426]
[1765010593872,0.4769,3020.8,3020.4,3.7927426]
[1765010596476,0.4769,3020.8,3020.4,0.482]
[1765010596774,0.4769,3020.8,3020.4,0.001]
[1765010596775,0.3955,3020.5,3020.4,0.001]
[1765010597153,0.8716,3020.5,3020.4,0.001]
[1765010597661,1.04123967,3020.5,3020.4,0.001]
[1765010598766,4.35194981,3020.5,3020.4,0.001]
[1765010599351,4.45194981,3020.5,3020.4,0.001]
[1765010599745,4.35194981,3020.5,3020.4,0.001]
[1765010602701,0.6,3020.6,3020.4,0.482]
[1765010602992,0.2007,3020.9,3020.4,0.482]
[1765010602993,3.31040994,3020.8,3020.5,0.481]
[1765010603353,3.78730994,3020.8,3020.5,0.481]
[1765010603552,3.78730994,3020.8,3020.4,0.001]
[1765010605092,0.2007,3020.9,3020.4,3.80167069]
[1765010605296,0.002,3020.9,3020.5,0.4899]
[1765010606560,0.002,3020.9,3020.8,0.481]
[1765010610698,0.5962,3020.9,3020.4,0.76466969]
[1765010610933,0.6779,3020.9,3020.4,0.76466969]
[1765010611095,0.4769,3020.8,3020.4,0.76466969]
[1765010611289,0.4769,3020.8,3020.5,0.21134664]
[1765010611989,0.3944,3020.6,3020.5,0.21134664]
[1765010612190,0.4769,3020.8,3020.5,0.21134664]
[1765010612386,0.4769,3020.8,3020.4,0.001]
[1765010613294,3.51207854,3020.9,3020.4,0.001]
[1765010613295,0.6787,3020.9,3020.4,0.001]
[1765010613503,0.002,3020.9,3020.5,0.4899]
[1765010613706,0.002,3020.9,3020.4,0.4909]
[1765010613904,0.002,3020.9,3020.5,0.8461477]
[1765010614594,0.002,3020.9,3020.6,0.4899]
[1765010615229,0.002,3020.9,3020.8,0.481]
[1765010615536,0.002,3020.9,3020.8,1.005]
[1765010615894,0.3964,3020.9,3020.8,0.524]
[1765010616114,0.8725,3020.9,3020.8,0.524]
[1765010616316,1.0723,3020.9,3020.6,0.524]
[1765010616619,0.4761,3020.8,3020.6,0.524]
[1765010616827,0.3952,3020.7,3020.6,0.524]
[1765010618030,0.3952,3020.7,3020.4,0.525]
[1765010618326,0.396,3020.5,3020.4,0.525]
[1765010621414,0.396,3020.5,3020.4,0.001]
[1765010621605,0.864,3020.5,3020.4,0.001]
[1765010625323,0.002,3020.9,3020.4,0.9919]
[1765010625525,0.002,3020.9,3020.8,0.4985]
[1765010626829,0.4122,3020.9,3020.5,1.0164]
[1765010630828,0.8796,3020.9,3020.5,0.524]
[1765010631522,0.0047,3020.6,3020.5,0.524]
[1765010631915,0.4671,3020.6,3020.5,0.524]
[1765010632300,0.0047,3020.6,3020.5,0.524]
[1765010632529,0.1947,3020.9,3020.5,0.9788]
[1765010632735,0.1947,3020.9,3020.5,1.4514]
[1765010633040,0.002,3020.9,3020.8,0.4548]
[1765010636208,0.4191,3020.9,3020.6,0.4726]
[1765010637099,0.002,3020.9,3020.8,0.4548]
[1765010637523,0.002,3020.9,3020.8,0.9274]
[1765010638046,0.002,3020.9,3020.8,0.4548]
[1765010638246,0.002,3020.9,3020.8,4.23778135]
[1765010638946,0.002,3020.9,3020.8,5.66707779]
[1765010642414,0.002,3020.9,3020.8,11.62006976]
[1765010642615,0.002,3020.9,3020.8,11.58696595]
[1765010643241,0.002,3020.9,3020.8,5.19447779]
[1765010643410,0.002,3020.9,3020.8,5.66707779]
[1765010646438,0.002,3020.9,3020.8,11.58696595]
[1765010649641,0.002,3020.9,3020.8,12.71806406]
[1765010650205,0.002,3020.9,3020.8,12.85055321]
[1765010655858,0.002,3020.9,3020.8,16.66255321]
[1765010658517,0.002,3020.9,3020.8,16.25704921]
[1765010660152,1.0722,3020.9,3020.5,0.001]
[1765010660359,0.3885,3020.6,3020.5,0.001]
[1765010661523,0.3885,3020.6,3020.5,3.31170894]
[1765010661925,0.3885,3020.6,3020.5,0.001]
[1765010663035,0.8769,3020.6,3020.5,0.001]
[1765010668140,0.3885,3020.6,3020.5,0.001]
[1765010670526,0.4884,3020.8,3020.5,0.001]
[1765010670727,0.1953,3020.9,3020.5,1.39024779]
[1765010670940,0.4924,3020.8,3020.5,0.001]
[1765010671538,0.3855,3020.6,3020.5,0.001]
[1765010675459,0.4913,3020.8,3020.5,0.001]
[1765010676168,0.3866,3020.6,3020.5,0.001]
[1765010676548,0.8769,3020.6,3020.5,0.001]
[1765010682289,1.29564581,3020.6,3020.5,0.001]
[1765010682997,0.8769,3020.6,3020.5,0.001]
[1765010701697,4.14810054,3020.6,3020.5,0.001]
[1765010701897,4.24810054,3020.6,3020.5,0.001]
[1765010702275,4.14810054,3020.6,3020.5,0.001]
[1765010704401,0.002,3020.9,3020.5,0.9555]
[1765010704606,0.002,3020.9,3020.8,0.4563]
[1765010706307,1.0725,3020.9,3020.5,0.525]
[1765010706604,0.4269,3020.6,3020.5,0.525]
[1765010706898,0.4269,3020.6,3020.5,0.001]
[1765010707091,0.9778,3020.6,3020.5,0.001]
[1765010707473,0.8778,3020.6,3020.5,0.001]
[1765010707874,4.18840054,3020.6,3020.5,0.001]
[1765010708075,5.0831685,3020.6,3020.5,0.001]
[1765010708292,5.1831685,3020.6,3020.5,0.001]
[1765010709204,5.0831685,3020.6,3020.5,0.001]
[1765010709704,11.10395935,3020.6,3020.5,0.001]
[1765010709902,11.20395935,3020.6,3020.5,0.001]
[1765010710380,11.10395935,3020.6,3020.5,0.001]
[1765010711080,11.20395935,3020.6,3020.5,0.001]
[1765010711286,11.10395935,3020.6,3020.5,0.001]
[1765010711710,11.20395935,3020.6,3020.5,0.001]
[1765010712781,12.46763444,3020.6,3020.5,0.001]
[1765010719709,5.59043959,3020.6,3020.5,0.001]
[1765010719894,3.31060054,3020.6,3020.5,0.001]
[1765010720094,3.31060054,3020.6,3020.5,0.482]
[1765010720487,3.70640054,3020.6,3020.5,0.001]
[1765010721111,4.29210054,3020.6,3020.5,0.001]
[1765010721315,4.19210054,3020.6,3020.5,0.001]
[1765010724232,3.70640054,3020.6,3020.5,0.001]
[1765010724532,4.19210054,3020.6,3020.5,0.001]
[1765010725405,3.83460054,3020.6,3020.5,0.482]
[1765010727431,0.82479669,3020.8,3020.5,0.482]
[1765010727730,3.31042318,3020.8,3020.7,0.481]
[1765010728036,3.31042318,3020.8,3020.5,0.001]
[1765010728401,3.31042318,3020.8,3020.5,0.4536]
[1765010728803,4.13711233,3020.9,3020.7,0.481]
[1765010730727,4.13711233,3020.9,3020.8,0.481]
[1765010730933,0.002,3020.9,3020.8,0.481]
[1765010731109,3.31227177,3020.9,3020.8,0.9336]
[1765010731514,3.31227177,3020.9,3020.8,0.481]
[1765010732925,0.002,3020.9,3020.8,0.481]
[1765010733334,0.002,3020.9,3020.8,0.9336]
[1765010738151,0.4782,3020.9,3020.5,0.001]
[1765010738442,0.8811,3020.9,3020.5,0.001]
[1765010739148,0.8811,3020.9,3020.5,0.4696]
[1765010740040,4.1914793,3020.9,3020.5,0.4696]
[1765010741555,3.7885793,3020.9,3020.5,0.4696]
[1765010742944,0.4029,3020.6,3020.5,0.001]
[1765010743520,1.15961967,3020.6,3020.5,0.001]
[1765010744020,1.05961967,3020.6,3020.5,0.001]
[1765010744219,1.15961967,3020.6,3020.5,0.001]
[1765010745349,4.57022021,3020.6,3020.5,0.001]
[1765010745520,5.3950169,3020.6,3020.5,0.001]
[1765010745716,6.42611501,3020.6,3020.5,0.001]
[1765010745942,6.52611501,3020.6,3020.5,0.001]
[1765010747753,8.52611501,3020.6,3020.5,0.001]
[1765010748675,6.52611501,3020.6,3020.5,0.001]
[1765010748871,8.52611501,3020.6,3020.5,0.001]
[1765010750817,8.87573614,3020.6,3020.5,0.001]
[1765010753855,9.47573614,3020.6,3020.5,0.001]
[1765010754653,9.60835048,3020.6,3020.5,0.001]
[1765010758428,21.46375214,3020.6,3020.5,0.001]
[1765010759759,21.46375214,3020.6,3020.4,0.001]
[1765010759959,21.46375214,3020.6,3019.8,0.001]
[1765010759960,7.25879894,3019.9,3019.8,0.001]
[1765010760262,11.69276686,3019.9,3019.8,0.001]
[1765010760464,12.28838823,3019.9,3019.8,0.001]
[1765010762275,11.02678823,3019.9,3019.8,0.4977]
[1765010762451,11.22678823,3019.9,3019.8,0.4977]
[1765010762943,11.65398823,3019.9,3019.8,0.001]
[1765010763145,14.02681677,3019.9,3019.8,0.001]
[1765010764877,16.02681677,3019.9,3019.8,0.001]
[1765010765081,19.9545176,3019.9,3019.8,0.001]
[1765010765242,21.9545176,3019.9,3019.8,0.001]
[1765010765875,7.25879894,3019.2,3019.1,0.001]
[1765010766071,8.7557564,3019.2,3019.1,0.001]
[1765010766280,9.2187564,3019.2,3019.1,0.001]
[1765010766438,12.99219206,3019.2,3019.1,0.001]
[1765010770562,12.52919206,3019.2,3019.1,0.001]
[1765010770768,12.99409206,3019.2,3019.1,0.001]
[1765010771181,14.99409206,3019.2,3019.1,0.001]
[1765010772580,14.99409206,3019.2,3018.5,0.001]
[1765010772581,9.84599884,3018.6,3018.5,0.001]
[1765010772780,12.33888964,3018.6,3018.5,0.001]
[1765010773380,12.79668964,3018.6,3018.5,0.001]
[1765010774685,12.69668964,3018.6,3018.5,0.001]
[1765010774984,12.79668964,3018.6,3018.5,0.001]
[1765010775184,13.20740897,3018.6,3018.5,0.001]
[1765010778975,13.67160897,3018.6,3018.5,0.001]
[1765010779484,13.20740897,3018.6,3018.5,0.001]
[1765010782657,12.68890897,3018.6,3018.5,0.4874]
[1765010783053,4.49618812,3018.6,3018.5,0.9442]
[1765010783378,4.1375228,3018.7,3018.5,0.9442]
[1765010783697,4.1375228,3018.7,3018.6,0.9432]
[1765010784383,0.82479669,3018.8,3018.6,0.9432]
[1765010784582,3.3124648,3018.9,3018.7,0.9432]
[1765010784758,3.3124648,3018.9,3018.8,0.4864]
[1765010784960,3.3124648,3018.9,3018.8,0.9432]
[1765010785286,3.31224537,3019.1,3018.8,0.9432]
[1765010785468,0.82479669,3019.0,3018.9,0.4568]
[1765010785863,0.82479669,3019.0,3018.9,0.9432]
[1765010786078,3.31224537,3019.1,3018.9,0.9432]
[1765010786278,3.31224537,3019.1,3019.0,0.9432]
[1765010787670,4.13696786,3019.2,3019.0,0.9432]
[1765010787880,4.86256197,3019.2,3019.1,1.1264]
[1765010788667,3.31205585,3019.3,3019.1,1.1264]
[1765010788884,3.31205585,3019.3,3019.2,0.9432]
[1765010790993,0.82479669,3020.1,3019.2,0.9432]
[1765010791198,4.13817973,3019.9,3019.8,0.4864]
[1765010791381,4.86377384,3019.9,3019.8,0.4864]
[1765010791584,4.86377384,3019.9,3019.8,0.9432]
[1765010793393,5.46377384,3019.9,3019.8,0.9432]
[1765010796366,4.73817973,3019.9,3019.8,0.9432]
[1765010799301,0.602,3019.9,3019.8,0.9432]
[1765010799806,0.002,3019.9,3019.8,0.9432]
[1765010800707,0.002,3019.9,3019.8,0.4864]
[1765010800905,1.32579669,3019.9,3019.2,0.4587]
[1765010801110,0.82479669,3019.6,3019.1,0.6419]
[1765010801478,0.82479669,3019.6,3019.2,0.4587]
[1765010801879,0.82479669,3019.6,3019.5,0.4972]
[1765010802279,0.82479669,3019.6,3019.5,0.9559]
[1765010802709,4.1364936,3019.6,3019.5,0.9559]
[1765010806016,3.31169691,3019.6,3019.5,0.9559]
[1765010806233,0.002,3019.9,3019.5,0.9559]
[1765010806395,0.002,3019.9,3019.8,0.4972]
[1765010806817,0.002,3019.9,3019.8,0.9559]
[1765010807220,3.31338751,3019.9,3019.8,0.9559]
[1765010809521,0.002,3019.9,3019.8,0.9559]
[1765010817241,3.31336792,3019.9,3019.8,0.4972]
[1765010817415,7.76726883,3019.9,3019.5,0.46]
[1765010817601,0.82479669,3019.8,3019.5,0.46]
[1765010818432,3.31158724,3019.7,3019.5,0.46]
[1765010818931,3.31158724,3019.7,3019.6,0.4576]
[1765010819941,3.70918724,3019.7,3019.3,0.524]
[1765010820136,0.82479669,3019.6,3019.1,0.6432]
[1765010820305,0.82479669,3019.6,3019.2,0.46]
[1765010820505,0.3955,3019.3,3019.0,4.335]
[1765010821040,0.0049,3019.1,3018.9,0.001]
[1765010821337,0.4924,3019.3,3018.9,0.001]
[1765010821544,0.1,3019.4,3019.0,0.4576]
[1765010821745,6.62361318,3019.5,3018.9,0.461]
[1765010821909,3.31180659,3019.5,3019.4,0.4576]
[1765010822942,1.31819669,3019.8,3019.4,0.9176]
[1765010822943,3.31149636,3019.8,3019.4,0.9176]
[1765010823107,3.31149636,3019.8,3019.7,0.4576]
[1765010823507,3.31149636,3019.8,3019.7,0.9176]
[1765010824744,3.31346152,3019.9,3019.7,0.9176]
[1765010825062,3.31346152,3019.9,3019.8,0.4576]
[1765010825544,3.91346152,3019.9,3019.8,0.4576]
[1765010825945,0.602,3019.9,3019.8,0.9176]
[1765010827006,0.002,3019.9,3019.8,0.9176]
[1765010827367,0.002,3019.9,3019.8,4.65200453]
[1765010827854,0.002,3019.9,3019.8,1.34052695]
[1765010829958,0.002,3019.9,3019.8,4.65200453]
[1765010830742,0.002,3019.9,3019.8,10.5772723]
[1765010835940,0.002,3019.9,3019.8,11.40206899]
[1765010837250,0.002,3019.9,3019.8,1.34052695]
[1765010838856,0.002,3019.9,3019.8,1.40352695]
[1765010839021,0.002,3019.9,3019.8,6.00200122]
[1765010839217,0.002,3019.9,3019.8,6.72759533]
[1765010839421,0.002,3019.9,3019.8,12.6528631]
[1765010840019,0.002,3020.3,3019.9,1.13109811]
[1765010840223,0.002,3020.3,3020.2,6.40126777]
[1765010840546,0.002,3020.3,3020.2,6.92426777]
[1765010840743,0.002,3020.3,3020.2,7.38646777]
[1765010840947,0.002,3020.3,3020.2,10.69750677]
[1765010847915,0.002,3020.3,3020.2,10.23530677]
[1765010848116,0.002,3020.3,3020.2,5.95942861]
[1765010848406,0.002,3020.3,3020.2,6.42162861]
[1765010849702,0.002,3020.3,3020.2,5.95942861]
[1765010850405,0.002,3020.3,3020.2,6.42162861]
[1765010853104,0.002,3020.3,3020.2,2.64838961]
[1765010853397,0.002,3020.3,3020.2,0.523]
[1765010853398,0.4182,3020.3,3020.2,0.523]
[1765010853614,0.8802,3020.3,3020.2,0.523]
[1765010854362,0.8802,3020.3,3019.8,0.001]
[1765010854580,0.0046,3019.9,3019.8,0.524]
[1765010855052,0.4624,3020.2,3019.8,1.0]
[1765010855222,0.002,3020.3,3019.8,4.77367758]
[1765010855410,0.4644,3020.3,3019.8,4.77367758]
[1765010856914,0.4644,3020.3,3019.8,1.4622]
[1765010857315,3.77535937,3020.3,3019.8,1.4622]
[1765010857526,3.77535937,3020.3,3019.8,1.0]
[1765010857726,0.4624,3020.2,3019.8,1.0]
[1765010859349,0.4624,3020.2,3019.8,4.31146794]
[1765010859645,0.002,3020.3,3019.8,4.76356794]
[1765010859949,0.5012,3020.3,3019.8,4.76356794]
[1765010860152,0.5012,3020.3,3019.8,1.4521]
[1765010860451,0.5012,3020.3,3019.8,4.76357256]
[1765010860948,0.5012,3020.3,3019.8,1.4521]
[1765010861117,0.5012,3020.3,3019.8,4.7635637]
[1765010861814,0.002,3020.3,3020.2,0.4774]
[1765010862019,0.002,3020.3,3020.2,1.0004]
[1765010866959,0.8799,3020.3,3020.2,0.523]
[1765010867850,0.8799,3020.3,3019.9,0.523]
[1765010868047,0.4992,3020.2,3019.9,0.523]
[1765010868247,0.3799,3020.0,3019.9,0.523]
[1765010868846,4.18920531,3020.0,3019.8,0.001]
[1765010869152,0.5773,3019.9,3019.8,0.001]
[1765010869331,1.0705,3019.9,3019.8,0.001]
[1765010871958,4.38186792,3019.9,3019.8,0.001]
[1765010880274,4.38386792,3019.9,3019.8,0.001]
[1765010881567,4.48386792,3019.9,3019.8,0.001]
[1765010881757,7.13611548,3019.9,3019.8,0.001]